bitfinex-derivatives/quotes_ETHF0:USTF0_20250320
["timestamp","ask_amount","ask_price","bid_price","bid_amount"]
[1742446526526,5.1882,2021.8,2021.7,0.79131]
[1742446526727,3.2078,2021.8,2021.7,0.79131]
[1742446527026,4.4936,2021.8,2021.7,0.79131]
[1742446528137,0.79135,2021.7,2021.6,0.79133]
[1742446528327,5.37695,2021.7,2021.6,0.79133]
[1742446530444,4.5856,2021.7,2021.6,0.79133]
[1742446531032,5.37691,2021.7,2021.6,0.79133]
[1742446531237,4.5856,2021.7,2021.6,0.79133]
[1742446531630,5.37691,2021.7,2021.6,0.79133]
[1742446532125,4.5856,2021.7,2021.6,0.79133]
[1742446532330,5.37691,2021.7,2021.6,0.79133]
[1742446532645,4.5856,2021.7,2021.6,0.79133]
[1742446532941,5.37691,2021.7,2021.6,0.79133]
[1742446533143,4.5856,2021.7,2021.6,0.79133]
[1742446534446,5.37691,2021.7,2021.6,0.79133]
[1742446534643,5.37691,2021.7,2021.6,1.43688678]
[1742446535346,4.5856,2021.7,2021.6,1.43688678]
[1742446536634,1.4106,2021.7,2021.6,1.43688678]
[1742446539146,3.174,2021.8,2021.7,0.79131]
[1742446539342,4.4954,2021.8,2021.7,2.87591]
[1742446539542,4.4954,2021.8,2021.7,3.56321]
[1742446540846,5.28667,2021.8,2021.7,3.56321]
[1742446541651,4.4954,2021.8,2021.7,3.56321]
[1742446543846,0.70982482,2021.9,2021.8,0.79127]
[1742446544047,3.88382482,2021.9,2021.8,2.09727]
[1742446544438,2.02892482,2021.9,2021.8,2.09727]
[1742446547441,1.32652482,2021.9,2021.8,2.09727]
[1742446547641,0.00742482,2021.9,2021.8,2.09727]
[1742446548950,1.29232482,2021.9,2021.8,2.09727]
[1742446549652,0.00742482,2021.9,2021.8,2.09727]
[1742446551760,1.36562482,2021.9,2021.8,2.09727]
[1742446552653,1.36562482,2021.9,2021.8,2.7423675]
[1742446554052,1.36562482,2021.9,2021.8,2.09727]
[1742446557551,5.33085482,2021.9,2021.8,2.09727]
[1742446557747,5.99945482,2021.9,2021.8,2.09727]
[1742446557945,5.20822482,2021.9,2021.8,2.09727]
[1742446560553,5.99945482,2021.9,2021.8,2.09727]
[1742446562755,5.20822482,2021.9,2021.8,2.09727]
[1742446566465,5.99945482,2021.9,2021.8,2.09727]
[1742446566859,5.20822482,2021.9,2021.8,2.09727]
[1742446567164,5.99945482,2021.9,2021.8,2.09727]
[1742446568762,5.20822482,2021.9,2021.8,2.09727]
[1742446568964,5.99945482,2021.9,2021.8,2.09727]
[1742446573253,0.79135,2021.6,2021.5,0.79137]
[1742446573557,0.79135,2021.6,2021.5,2.10802697]
[1742446573954,1.47635,2021.6,2021.5,2.10802697]
[1742446574359,0.685,2021.6,2021.5,2.10802697]
[1742446574566,2.0216,2021.6,2021.5,3.45492697]
[1742446574767,2.81295,2021.6,2021.5,3.45492697]
[1742446574960,2.0216,2021.6,2021.5,3.45492697]
[1742446576357,2.81295,2021.6,2021.5,3.45492697]
[1742446577069,2.81295,2021.6,2021.5,2.80927]
[1742446578769,2.81295,2021.6,2021.5,2.0179]
[1742446580164,2.81295,2021.6,2021.5,2.80929]
[1742446581070,2.0216,2021.6,2021.5,2.80929]
[1742446581568,2.81295,2021.6,2021.5,2.80929]
[1742446581774,5.98595,2021.6,2021.5,2.80929]
[1742446582274,5.1946,2021.6,2021.5,2.80929]
[1742446582472,5.98595,2021.6,2021.5,2.80929]
[1742446583075,5.1946,2021.6,2021.5,2.80929]
[1742446585166,5.98595,2021.6,2021.5,2.80929]
[1742446591777,5.1946,2021.6,2021.5,2.80929]
[1742446592075,3.173,2021.8,2021.7,0.79127]
[1742446592276,4.5598,2021.8,2021.7,0.79127]
[1742446592776,4.5598,2021.8,2021.7,1.46657]
[1742446593172,2.1781,2021.8,2021.7,1.46657]
[1742446593371,5.27952482,2021.9,2021.8,0.79127]
[1742446593578,7.85698482,2021.9,2021.8,2.0222]
[1742446593967,7.85698482,2021.9,2021.8,2.81347]
[1742446594170,7.85698482,2021.9,2021.8,2.0222]
[1742446594875,0.79136,2021.6,2021.5,0.79135]
[1742446595070,0.79136,2021.6,2021.5,1.42735]
[1742446595582,1.44886,2021.6,2021.5,1.42735]
[1742446595881,0.6575,2021.6,2021.5,1.42735]
[1742446596078,1.44885,2021.6,2021.5,2.76095]
[1742446598777,3.21522482,2021.9,2021.8,0.79127]
[1742446598975,4.00645482,2021.9,2021.8,0.79127]
[1742446599675,4.00645482,2021.9,2021.8,3.44703534]
[1742446600585,3.21522482,2021.9,2021.8,2.80207]
[1742446601482,0.00742482,2021.9,2021.8,2.80207]
[1742446601886,0.00742482,2021.9,2021.8,3.44686302]
[1742446609081,6.3798,2022.3,2022.2,0.79112]
[1742446609273,0.7912,2022.0,2021.9,2.09821]
[1742446609477,0.7912,2022.0,2021.9,1.307]
[1742446609983,2.8205,2022.0,2021.9,1.307]
[1742446610580,2.8205,2022.0,2021.9,2.09823]
[1742446611485,2.0293,2022.0,2021.9,2.09823]
[1742446611685,2.0293,2022.0,2021.9,2.76123]
[1742446612489,3.172,2022.1,2022.0,0.7912]
[1742446612788,4.4904,2022.1,2022.0,2.1205]
[1742446617691,1.3184,2022.1,2022.0,2.1205]
[1742446618499,2.10956,2022.1,2022.0,2.1205]
[1742446618697,1.3184,2022.1,2022.0,2.1205]
[1742446620999,2.10956,2022.1,2022.0,2.1205]
[1742446623505,1.3184,2022.1,2022.0,2.1205]
[1742446625201,2.10956,2022.1,2022.0,2.1205]
[1742446625404,1.3184,2022.1,2022.0,2.1205]
[1742446626701,1.93361633,2022.2,2022.1,0.79116]
[1742446627000,1.93361633,2022.2,2022.1,2.86546]
[1742446628804,0.00491633,2022.2,2022.1,2.86546]
[1742446629003,0.00491633,2022.2,2022.1,3.51048114]
[1742446631612,0.00491633,2022.2,2022.1,4.186598]
[1742446633706,0.00491633,2022.2,2022.1,4.18633241]
[1742446634215,0.00491633,2022.2,2022.1,3.51048114]
[1742446636111,3.96199,2022.6,2022.5,0.79098]
[1742446636317,4.61759,2022.6,2022.5,0.79098]
[1742446636816,0.79103,2022.5,2022.4,0.79101]
[1742446637317,0.79107,2022.4,2022.3,0.79104]
[1742446637617,2.11137,2022.4,2022.3,2.12474]
[1742446652215,5.28137,2022.4,2022.3,2.12474]
[1742446655328,3.2078,2022.7,2022.3,4.5037]
[1742446655531,0.79094,2022.7,2022.6,0.79093]
[1742446656024,0.79094,2022.7,2022.6,1.43613287]
[1742446656731,2.11084,2022.7,2022.6,1.43613287]
[1742446657318,1.3199,2022.7,2022.6,1.43613287]
[1742446657631,1.3199,2022.7,2022.6,0.79093]
[1742446658926,1.97663,2023.4,2022.6,13.50841958]
[1742446659127,3.858,2023.2,2023.1,0.79073]
[1742446659633,1.9743,2023.2,2023.1,0.79073]
[1742446660125,1.9743,2023.2,2023.1,2.14963]
[1742446661423,5.1443,2023.2,2023.1,2.14963]
[1742446664032,5.93503,2023.2,2023.1,2.14963]
[1742446667630,9.14283,2023.2,2023.1,2.14963]
[1742446670828,9.14283,2023.2,2022.8,0.00742482]
[1742446670829,0.79083,2023.0,2022.8,0.00742482]
[1742446671139,0.79083,2023.0,2022.9,2.07313]
[1742446671443,3.95983,2023.0,2022.9,1.2823]
[1742446671739,3.95983,2023.0,2022.9,2.07314]
[1742446674343,3.95983,2023.0,2022.9,1.2823]
[1742446675533,0.79084,2022.9,2022.8,0.00742482]
[1742446675740,4.69784,2022.9,2022.8,0.00742482]
[1742446676037,0.79092,2022.7,2022.6,3.2078]
[1742446676243,3.169,2022.7,2022.5,0.79099]
[1742446676550,0.79099,2022.6,2022.5,0.79099]
[1742446676849,0.791,2022.5,2022.4,1.43441]
[1742446677055,3.96,2022.5,2022.4,1.43441]
[1742446678449,3.169,2022.5,2022.4,1.43441]
[1742446681755,0.00742482,2022.8,2022.7,0.79092]
[1742446681756,0.79830482,2022.8,2022.7,0.79092]
[1742446681961,4.65470482,2022.8,2022.7,0.79092]
[1742446682659,0.79093,2022.7,2022.6,0.79092]
[1742446683763,0.79096,2022.6,2022.5,1.42947]
[1742446684759,0.79096,2022.6,2022.5,0.6385]
[1742446686057,3.95996,2022.6,2022.5,0.6385]
[1742446686262,3.95996,2022.6,2022.5,1.4295]
[1742446686457,3.95996,2022.6,2022.5,0.6385]
[1742446687961,3.95996,2022.6,2022.5,1.4295]
[1742446688164,3.169,2022.6,2022.5,1.4295]
[1742446689161,3.95996,2022.6,2022.5,1.4295]
[1742446689363,3.95996,2022.6,2022.5,2.7667]
[1742446691169,3.169,2022.6,2022.5,2.7667]
[1742446691368,3.21522482,2022.8,2022.7,0.79092]
[1742446691561,3.21522482,2022.8,2022.6,1.3372]
[1742446691562,2.11122,2022.7,2022.6,1.3372]
[1742446692065,5.28022,2022.7,2022.6,1.3372]
[1742446692663,6.46665,2022.7,2022.3,0.00742482]
[1742446692868,0.79104,2022.4,2022.3,0.00742482]
[1742446693067,3.96004,2022.4,2022.3,0.00742482]
[1742446693269,6.00134,2022.4,2022.3,0.00742482]
[1742446693465,6.00134,2022.4,2022.3,1.35922482]
[1742446695364,6.00134,2022.4,2022.3,2.15030482]
[1742446695868,3.169,2022.4,2022.3,2.15030482]
[1742446696573,4.4831,2022.4,2022.3,2.15030482]
[1742446697775,3.169,2022.4,2022.3,2.15030482]
[1742446701179,4.5223,2022.5,2022.4,0.79104]
[1742446701481,6.3778,2022.5,2022.4,2.17484]
[1742446701679,6.3778,2022.5,2022.4,2.87304]
[1742446702774,3.2078,2022.5,2022.4,2.87304]
[1742446703477,3.2078,2022.5,2022.4,3.56464]
[1742446703881,3.2078,2022.5,2022.4,4.20897929]
[1742446708385,2.16986,2022.6,2022.5,0.791]
[1742446708585,2.16986,2022.6,2022.5,2.1479]
[1742446708886,1.3789,2022.6,2022.5,2.1479]
[1742446709986,2.16986,2022.6,2022.5,2.1479]
[1742446710989,0.791,2022.5,2022.4,0.79102]
[1742446711194,6.0361,2022.5,2022.4,2.10512]
[1742446711392,6.0361,2022.5,2022.4,1.3141]
[1742446711895,9.2439,2022.5,2022.4,1.3141]
[1742446712386,0.79104,2022.4,2022.3,0.00742482]
[1742446712589,2.17964,2022.4,2022.3,1.32152482]
[1742446714891,2.17964,2022.4,2022.3,0.00742482]
[1742446716194,2.17964,2022.4,2022.3,1.33962482]
[1742446720501,5.38744,2022.4,2022.3,1.33962482]
[1742446726904,2.17964,2022.4,2022.3,1.33962482]
[1742446732012,2.17964,2022.4,2022.3,2.03032482]
[1742446734914,5.38744,2022.4,2022.3,2.03032482]
[1742446760835,3.99884,2022.4,2022.3,2.03032482]
[1742446761733,3.99884,2022.4,2022.3,2.72392482]
[1742446765134,7.16784,2022.4,2022.3,2.72392482]
[1742446766027,7.81494,2022.4,2022.3,2.72392482]
[1742446766941,7.81494,2022.4,2022.3,2.03032482]
[1742446769036,0.7912,2022.0,2021.9,1.44531]
[1742446769338,0.7912,2022.0,2021.9,0.6541]
[1742446769740,2.0733,2022.0,2021.9,1.44533]
[1742446769939,2.0733,2022.0,2021.9,2.09103528]
[1742446770238,2.0733,2022.0,2021.9,1.29980528]
[1742446770829,2.0733,2022.0,2021.9,2.09103528]
[1742446772645,2.0733,2022.0,2021.9,4.04093528]
[1742446773244,0.7912,2022.0,2021.9,4.04093528]
[1742446773744,0.79112,2022.3,2022.2,0.7911]
[1742446774046,3.96016,2022.2,2022.1,0.79112]
[1742446774736,3.96016,2022.2,2022.1,1.43682528]
[1742446776138,3.96016,2022.2,2022.1,0.79112]
[1742446776443,3.96016,2022.2,2022.1,1.43666466]
[1742446776945,3.96016,2022.2,2022.1,0.64554466]
[1742446777443,3.96016,2022.2,2022.1,2.05364466]
[1742446777845,3.96016,2022.2,2022.1,2.84480466]
[1742446786249,3.96016,2022.2,2022.1,2.19926]
[1742446786543,3.96016,2022.2,2022.1,2.84474477]
[1742446791349,3.169,2022.2,2022.1,2.84474477]
[1742446791747,5.28112,2022.2,2022.1,2.84474477]
[1742446791946,4.49,2022.2,2022.1,2.84474477]
[1742446792661,5.28112,2022.2,2022.1,2.84474477]
[1742446793362,4.49,2022.2,2022.1,2.84474477]
[1742446793952,5.28112,2022.2,2022.1,2.84474477]
[1742446795862,4.49,2022.2,2022.1,2.84474477]
[1742446801261,4.63916,2022.4,2022.3,0.79108]
[1742446801469,7.80716,2022.4,2022.3,0.79108]
[1742446802673,9.17526,2022.4,2022.3,2.06858]
[1742446803370,9.17526,2022.4,2022.3,1.2775]
[1742446803574,0.79108,2022.3,2022.2,0.7058]
[1742446803768,2.15918,2022.3,2022.2,1.9833]
[1742446804273,2.15918,2022.3,2022.2,2.62894939]
[1742446805278,2.15918,2022.3,2022.2,3.42003939]
[1742446807981,1.3681,2022.3,2022.2,3.42003939]
[1742446808173,2.15918,2022.3,2022.2,3.42003939]
[1742446808376,1.3681,2022.3,2022.2,3.42003939]
[1742446808676,2.15918,2022.3,2022.2,3.42003939]
[1742446809672,1.3681,2022.3,2022.2,3.42003939]
[1742446809983,2.15918,2022.3,2022.2,3.42003939]
[1742446810980,1.3681,2022.3,2022.2,3.42003939]
[1742446811879,1.3681,2022.3,2022.2,4.05553939]
[1742446812476,2.15918,2022.3,2022.2,4.05553939]
[1742446813386,2.15918,2022.3,2022.2,1.92314939]
[1742446814886,2.15918,2022.3,2022.2,2.71426939]
[1742446815284,3.99885,2022.4,2022.3,0.79108]
[1742446815486,8.48895,2022.4,2022.3,2.76688]
[1742446815986,4.5309,2022.4,2022.3,2.76688]
[1742446817287,4.5309,2022.4,2022.3,3.41243026]
[1742446818189,3.2078,2022.4,2022.3,3.41243026]
[1742446818491,1.2746,2022.6,2022.5,0.791]
[1742446819091,1.2746,2022.6,2022.5,1.3377783]
[1742446819292,1.2746,2022.6,2022.5,2.0396783]
[1742446819479,3.2078,2022.7,2022.6,0.79096]
[1742446819688,3.2078,2022.7,2022.6,3.36529423]
[1742446819982,4.4824,2022.7,2022.6,3.36529423]
[1742446820590,5.27332,2022.7,2022.6,3.36529423]
[1742446820991,5.95422,2022.7,2022.6,3.36529423]
[1742446822090,5.1633,2022.7,2022.6,3.36529423]
[1742446822786,4.4824,2022.7,2022.6,3.36529423]
[1742446823590,4.4824,2022.7,2022.6,3.36479586]
[1742446823995,5.27332,2022.7,2022.6,3.36479586]
[1742446824197,4.4824,2022.7,2022.6,3.36479586]
[1742446824396,5.27332,2022.7,2022.6,3.36479586]
[1742446824590,5.96582,2022.7,2022.6,3.36479586]
[1742446825497,5.96582,2022.7,2022.6,3.36468712]
[1742446825697,5.1749,2022.7,2022.6,3.36468712]
[1742446828299,4.4824,2022.7,2022.6,3.36468712]
[1742446829693,1.2746,2022.7,2022.6,3.36468712]
[1742446829895,2.06552,2022.7,2022.6,3.36468712]
[1742446830090,1.2746,2022.7,2022.6,3.36468712]
[1742446830295,2.06552,2022.7,2022.6,3.36468712]
[1742446830803,1.2746,2022.7,2022.6,3.36468712]
[1742446831502,1.2746,2022.7,2022.6,3.36438036]
[1742446833103,0.00742482,2022.8,2022.7,0.79092]
[1742446833301,1.40742482,2022.8,2022.7,3.30824036]
[1742446833602,1.40742482,2022.8,2022.7,3.30816458]
[1742446833900,2.19830482,2022.8,2022.7,1.87754458]
[1742446834097,0.79096,2022.6,2022.5,3.2078]
[1742446834403,3.95696,2022.6,2022.5,3.75348759]
[1742446834896,4.60716,2022.6,2022.5,3.75348759]
[1742446835094,4.60716,2022.6,2022.5,3.2078]
[1742446836099,0.79104,2022.4,2022.3,0.79105]
[1742446836305,3.95704,2022.4,2022.3,1.33683534]
[1742446836600,3.95704,2022.4,2022.3,0.54578534]
[1742446836795,4.63784,2022.4,2022.3,0.54578534]
[1742446837405,0.79108,2022.3,2022.2,5.29429]
[1742446837602,2.80998,2022.3,2022.2,5.84014326]
[1742446839807,2.80998,2022.3,2022.2,5.84017326]
[1742446841600,2.80998,2022.3,2022.2,5.04905326]
[1742446842212,2.80998,2022.3,2022.2,5.84017326]
[1742446842715,2.0189,2022.3,2022.2,5.84017326]
[1742446843409,2.80998,2022.3,2022.2,5.84017326]
[1742446843810,3.166,2022.4,2022.3,0.79108]
[1742446844117,3.166,2022.4,2022.3,2.70713326]
[1742446845218,4.4704,2022.4,2022.3,2.70713326]
[1742446845408,4.4704,2022.4,2022.3,2.70714149]
[1742446845810,1.3044,2022.4,2022.3,2.70714149]
[1742446847320,1.3044,2022.4,2022.3,2.70714793]
[1742446847516,2.09544,2022.4,2022.3,2.70714793]
[1742446847722,1.3044,2022.4,2022.3,2.70714793]
[1742446848222,2.09544,2022.4,2022.3,2.70714793]
[1742446849322,2.09544,2022.4,2022.3,2.70711512]
[1742446849820,2.09544,2022.4,2022.3,1.91603512]
[1742446851325,2.09544,2022.4,2022.3,2.70711431]
[1742446852629,2.09544,2022.4,2022.3,1.91603431]
[1742446853228,2.09544,2022.4,2022.3,2.16128]
[1742446853432,2.09544,2022.4,2022.3,2.7071043]
[1742446853634,2.09544,2022.4,2022.3,1.9160243]
[1742446854120,2.09544,2022.4,2022.3,2.7071043]
[1742446854823,2.09544,2022.4,2022.3,1.9160243]
[1742446855332,2.09544,2022.4,2022.3,1.9160406]
[1742446855628,2.09544,2022.4,2022.3,0.5458406]
[1742446856628,2.09544,2022.4,2022.3,1.9443406]
[1742446857329,2.09544,2022.4,2022.3,1.94441023]
[1742446858024,2.09544,2022.4,2022.3,2.73549023]
[1742446859433,2.09544,2022.4,2022.3,2.73565463]
[1742446859936,2.09544,2022.4,2022.3,1.94457463]
[1742446860920,2.09544,2022.4,2022.3,1.94468539]
[1742446861129,2.09544,2022.4,2022.3,0.54618539]
[1742446861930,5.30324,2022.4,2022.3,0.54618539]
[1742446862130,0.79116,2022.1,2022.0,1.3161]
[1742446862437,3.95716,2022.1,2022.0,1.3161]
[1742446863034,5.33736,2022.1,2022.0,1.3161]
[1742446863234,0.79127,2021.8,2021.7,0.00742482]
[1742446863533,3.95727,2021.8,2021.7,0.00742482]
[1742446864037,7.16507,2021.8,2021.7,0.00742482]
[1742446864335,8.50247,2021.8,2021.7,0.00742482]
[1742446867137,0.79139,2021.5,2021.4,1.9603]
[1742446867344,3.95739,2021.5,2021.4,1.9603]
[1742446867938,0.79147,2021.3,2021.2,0.6791]
[1742446868136,0.79151,2021.2,2021.1,0.6395]
[1742446868738,1.44091,2021.2,2021.1,0.6395]
[1742446869344,2.73481,2021.2,2021.1,1.9877]
[1742446870849,2.73481,2021.2,2021.1,1.3482]
[1742446875551,0.79155,2021.1,2021.0,3.21522482]
[1742446875753,5.30985,2021.1,2021.0,4.58622482]
[1742446876652,5.30985,2021.1,2021.0,1.37842482]
[1742446877358,5.30985,2021.1,2021.0,0.00742482]
[1742446877546,6.01345,2021.1,2021.0,0.00742482]
[1742446877945,15.74400549,2021.1,2020.4,3.2078]
[1742446878142,5.18705,2020.8,2020.4,3.8466]
[1742446878453,0.79178,2020.5,2020.4,3.2078]
[1742446878653,3.95878,2020.5,2020.4,3.2078]
[1742446880956,3.95878,2020.5,2020.4,3.99962]
[1742446881154,3.95878,2020.5,2020.4,5.36572]
[1742446881357,3.95878,2020.5,2020.4,4.5739]
[1742446881759,3.95878,2020.5,2020.4,5.36572]
[1742446882860,0.79178,2020.5,2020.4,5.36572]
[1742446883061,3.95878,2020.5,2020.4,5.36572]
[1742446883450,3.95878,2020.5,2020.4,4.5739]
[1742446883658,3.95878,2020.5,2020.4,1.3661]
[1742446884349,3.167,2020.5,2020.4,2.15792]
[1742446885154,4.594,2020.8,2020.4,3.34564]
[1742446885357,3.2078,2020.8,2020.7,0.7917]
[1742446885858,3.168,2021.2,2020.9,0.79163]
[1742446886064,3.168,2021.2,2021.1,0.79155]
[1742446886257,3.95951,2021.2,2021.1,0.79155]
[1742446886457,3.95951,2021.2,2021.1,2.19475]
[1742446886660,3.95951,2021.2,2021.1,1.4032]
[1742446887747,3.95951,2021.2,2021.1,2.19475]
[1742446888358,0.79151,2021.2,2021.1,2.19475]
[1742446889566,3.95951,2021.3,2021.2,0.79151]
[1742446889767,3.95951,2021.3,2021.2,2.06831]
[1742446890064,3.95951,2021.3,2021.2,1.2768]
[1742446890664,3.95951,2021.3,2021.2,2.06831]
[1742446891261,3.168,2021.3,2021.2,2.06831]
[1742446891860,3.95947,2021.3,2021.2,2.06831]
[1742446892263,3.95947,2021.3,2021.2,1.2768]
[1742446892557,3.95947,2021.3,2021.2,2.06831]
[1742446893156,3.168,2021.3,2021.2,2.06831]
[1742446894165,3.167,2021.3,2021.2,1.2768]
[1742446894466,3.167,2021.3,2021.2,2.06831]
[1742446894661,6.08793482,2021.5,2021.2,1.2768]
[1742446894868,6.38222482,2021.5,2021.4,0.79143]
[1742446895070,7.17361482,2021.5,2021.4,0.79143]
[1742446895268,7.17361482,2021.5,2021.4,2.17593]
[1742446895768,0.79881482,2021.5,2021.4,2.17593]
[1742446895958,3.96581482,2021.5,2021.4,2.17593]
[1742446896165,3.17442482,2021.5,2021.4,3.49963]
[1742446896365,3.96581482,2021.5,2021.4,3.49963]
[1742446896566,3.17442482,2021.5,2021.4,3.49963]
[1742446897165,3.96581482,2021.5,2021.4,3.49963]
[1742446898569,3.17442482,2021.5,2021.4,3.49963]
[1742446898768,0.00742482,2021.5,2021.4,3.49963]
[1742446898969,3.167,2021.7,2021.6,0.79135]
[1742446899170,2.73448,2021.8,2021.7,0.79131]
[1742446899362,5.90148,2021.8,2021.7,0.79131]
[1742446899561,5.1102,2021.8,2021.7,0.79131]
[1742446899770,0.79133,2021.7,2021.6,0.79133]
[1742446900162,2.19463,2021.7,2021.6,0.79133]
[1742446900362,2.19463,2021.7,2021.4,1.3845]
[1742446900363,0.79136,2021.6,2021.5,0.79136]
[1742446900559,2.19466,2021.6,2021.5,0.79136]
[1742446900765,5.36166,2021.6,2021.5,0.79136]
[1742446901066,4.5703,2021.6,2021.5,0.79136]
[1742446902063,5.36165,2021.6,2021.5,0.79136]
[1742446902265,4.5703,2021.6,2021.4,1.3845]
[1742446902465,1.4033,2021.5,2021.4,2.17593]
[1742446902670,2.19469,2021.5,2021.4,2.17593]
[1742446903371,2.19469,2021.5,2021.4,1.47453]
[1742446903565,2.86619,2021.5,2021.4,1.47453]
[1742446906785,2.86619,2021.5,2021.3,3.2078]
[1742446906786,0.79143,2021.4,2021.3,3.99924]
[1742446906975,5.23453,2021.4,2021.3,3.2078]
[1742446907174,5.23453,2021.4,2021.3,3.99927]
[1742446908179,4.4431,2021.4,2021.3,3.99927]
[1742446908378,5.23453,2021.4,2021.3,3.99927]
[1742446908681,4.4431,2021.4,2021.3,3.99927]
[1742446910184,5.23453,2021.4,2021.3,3.99927]
[1742446910574,4.4431,2021.4,2021.3,3.99927]
[1742446912987,11.14599,2021.8,2021.3,5.18648]
[1742446912988,0.79134,2021.7,2021.3,5.18648]
[1742446913186,4.5221,2021.6,2021.5,0.79139]
[1742446913384,5.31345,2021.6,2021.5,1.43919]
[1742446914278,4.5221,2021.6,2021.5,1.97831242]
[1742446914479,5.31345,2021.6,2021.5,1.97831242]
[1742446916688,4.5221,2021.6,2021.5,1.97831242]
[1742446918893,5.31345,2021.6,2021.5,1.97831242]
[1742446919093,4.5221,2021.6,2021.5,1.97831242]
[1742446919294,5.31345,2021.6,2021.5,1.97831242]
[1742446920093,4.5221,2021.6,2021.5,1.97831242]
[1742446920295,5.31345,2021.6,2021.5,1.97831242]
[1742446921402,4.5221,2021.6,2021.5,1.97831242]
[1742446921601,4.5221,2021.6,2021.5,2.6544244]
[1742446922095,5.31345,2021.6,2021.5,2.6544244]
[1742446922802,4.5221,2021.6,2021.5,2.6544244]
[1742446923003,5.31345,2021.6,2021.5,2.6544244]
[1742446923304,5.31345,2021.6,2021.5,1.3312244]
[1742446923495,6.01135,2021.6,2021.5,0.79139]
[1742446923701,6.01135,2021.6,2021.5,1.33138137]
[1742446924094,4.5221,2021.6,2021.5,1.33138137]
[1742446925103,5.31345,2021.6,2021.5,1.33138137]
[1742446925495,0.79143,2021.5,2021.3,3.8843]
[1742446925695,1.3635,2021.4,2021.3,6.08077]
[1742446925906,1.3635,2021.4,2021.3,6.62086897]
[1742446926194,1.3635,2021.4,2021.3,7.26597903]
[1742446927599,3.166,2021.6,2021.5,0.79139]
[1742446927801,3.166,2021.6,2021.5,1.33148001]
[1742446928096,1.3142,2021.7,2021.6,0.79135]
[1742446928304,4.4802,2021.7,2021.6,1.33144001]
[1742446928494,1.3142,2021.7,2021.6,1.33144001]
[1742446929598,1.3142,2021.7,2021.6,1.33135343]
[1742446930301,1.3142,2021.7,2021.6,0.79135]
[1742446930603,1.3142,2021.7,2021.6,1.33132615]
[1742446930995,1.3142,2021.7,2021.6,0.79135]
[1742446931701,2.10551,2021.7,2021.6,0.79135]
[1742446932404,2.10551,2021.7,2021.6,1.33132047]
[1742446932897,1.3142,2021.7,2021.6,1.33132047]
[1742446933598,1.3142,2021.7,2021.6,1.33126798]
[1742446935508,1.3142,2021.7,2021.6,1.33120367]
[1742446937200,1.3142,2021.7,2021.6,4.53900367]
[1742446937503,1.3142,2021.7,2021.6,4.53896793]
[1742446939610,1.3142,2021.7,2021.6,4.53907566]
[1742446941119,2.10551,2021.7,2021.6,4.53907566]
[1742446943107,2.10551,2021.7,2021.6,3.74772566]
[1742446944015,2.10551,2021.7,2021.6,4.53907566]
[1742446945216,2.10551,2021.7,2021.6,1.33127566]
[1742446945414,2.10551,2021.7,2021.6,1.33160288]
[1742446946313,2.10551,2021.7,2021.6,0.54025288]
[1742446947511,0.79135,2021.6,2021.5,0.79138]
[1742446947711,5.92215,2021.6,2021.5,1.33163428]
[1742446947912,5.92215,2021.6,2021.5,0.54025428]
[1742446948215,5.92215,2021.6,2021.5,1.33164428]
[1742446949506,5.92215,2021.6,2021.5,1.33126582]
[1742446949720,5.92215,2021.6,2021.5,0.53987582]
[1742446950107,5.92215,2021.6,2021.5,2.70706582]
[1742446951009,5.23165,2021.6,2021.5,2.70706582]
[1742446951516,5.23165,2021.6,2021.5,2.70711627]
[1742446953420,4.4403,2021.6,2021.5,2.70728397]
[1742446953714,5.23165,2021.6,2021.5,2.70728397]
[1742446955417,5.23165,2021.6,2021.5,2.70714743]
[1742446957417,5.23165,2021.6,2021.5,2.70740682]
[1742446959420,5.23165,2021.6,2021.5,2.7074334]
[1742446960512,5.23165,2021.6,2021.5,1.9160434]
[1742446960815,9.62653,2021.6,2021.2,0.00742482]
[1742446961118,0.79147,2021.3,2021.2,2.15301482]
[1742446961314,3.95647,2021.3,2021.2,2.15301482]
[1742446961516,3.165,2021.3,2021.2,2.15301482]
[1742446961819,3.95647,2021.3,2021.2,2.15301482]
[1742446962015,5.27697,2021.3,2021.2,2.15301482]
[1742446963113,4.4855,2021.3,2021.2,2.15301482]
[1742446963318,5.27697,2021.3,2021.2,2.15301482]
[1742446964923,5.27697,2021.3,2021.2,1.36152482]
[1742446966212,5.27697,2021.3,2021.2,2.15303482]
[1742446966619,5.27697,2021.3,2021.2,1.36152482]
[1742446966820,5.27697,2021.3,2021.2,2.15303482]
[1742446967724,5.27697,2021.3,2021.2,1.36152482]
[1742446968016,5.27697,2021.3,2021.2,0.00742482]
[1742446969532,5.67024542,2021.3,2021.2,0.00742482]
[1742446969826,5.27697,2021.3,2021.2,0.00742482]
[1742446971727,5.67225959,2021.3,2021.2,0.00742482]
[1742446972027,5.27697,2021.3,2021.2,0.00742482]
[1742446973419,5.66321559,2021.3,2021.2,0.00742482]
[1742446974319,5.7464707,2021.3,2021.2,0.00742482]
[1742446974827,5.36022511,2021.3,2021.2,0.00742482]
[1742446975325,5.27697,2021.3,2021.2,0.00742482]
[1742446975526,5.66994249,2021.3,2021.2,0.00742482]
[1742446975728,5.75321195,2021.3,2021.2,0.00742482]
[1742446976319,5.66994249,2021.3,2021.2,0.00742482]
[1742446976724,5.75321794,2021.3,2021.2,0.00742482]
[1742446977123,0.79159,2021.0,2020.9,1.342]
[1742446977424,3.95759,2021.0,2020.9,1.342]
[1742446978127,0.79163,2020.9,2020.8,3.2078]
[1742446978320,3.44793,2020.9,2020.8,3.2078]
[1742446980234,3.95763,2020.9,2020.8,3.2078]
[1742446980429,3.95763,2020.9,2020.8,5.34557]
[1742446980817,3.166,2020.9,2020.8,5.34557]
[1742446981217,1.2796,2021.1,2020.8,4.5539]
[1742446981531,3.95754,2021.2,2021.1,0.79155]